bitfinex-derivatives/quotes_ETHF0:USTF0_20250824
["timestamp","ask_amount","ask_price","bid_price","bid_amount"]
[1756076412026,0.62400475,4782.1,4782.0,0.86297]
[1756076412225,2.18589865,4782.1,4782.0,20.41897]
[1756076412631,1.85449865,4782.1,4782.0,20.41897]
[1756076412829,1.17199865,4782.1,4782.0,20.57517]
[1756076413335,1.66889865,4782.1,4782.0,20.41897]
[1756076414234,1.00230475,4782.1,4782.0,20.41897]
[1756076414533,0.31660475,4782.1,4782.0,20.57517]
[1756076414731,3.2078,4782.9,4782.8,0.88721]
[1756076414732,0.2875,4782.9,4782.8,0.88721]
[1756076414928,0.2875,4782.9,4782.8,20.54601]
[1756076415127,1.4902,4783.3,4783.2,0.86287]
[1756076415332,2.12093525,4783.3,4783.2,20.41887]
[1756076415531,2.12093525,4783.3,4782.8,0.4182]
[1756076415831,1.2138,4782.4,4782.3,0.52105]
[1756076416037,1.4902,4782.4,4782.3,19.556]
[1756076417938,1.5076549,4782.4,4782.3,19.8979]
[1756076418232,1.0456549,4782.4,4782.3,20.0007]
[1756076418437,0.4093,4783.4,4783.3,0.76006]
[1756076418636,0.6508,4783.6,4783.5,1.14605]
[1756076418832,0.6508,4783.6,4783.5,0.7279]
[1756076419140,4.5949,4783.6,4783.5,19.556]
[1756076419534,0.5949,4783.6,4783.5,20.2839]
[1756076419735,1.2027,4783.6,4783.5,19.8979]
[1756076420635,1.4902,4783.6,4783.5,19.556]
[1756076420834,1.2027,4782.8,4782.7,0.3465]
[1756076421041,1.4902,4782.8,4782.7,19.7334]
[1756076421239,1.4902,4782.8,4782.7,19.7324]
[1756076421637,1.4902,4782.8,4782.4,3.62604]
[1756076421836,0.5949,4782.1,4782.0,0.4014]
[1756076422136,1.4902,4781.7,4781.6,0.1774]
[1756076422333,1.4902,4781.7,4781.6,19.7324]
[1756076422529,1.4902,4781.7,4780.7,3.2078]
[1756076422530,0.4061,4781.2,4781.1,19.555]
[1756076422734,1.4902,4780.7,4780.6,30.111]
[1756076422936,1.4902,4780.7,4780.6,19.555]
[1756076423136,0.8953,4780.7,4780.3,19.555]
[1756076423340,4.1031,4780.4,4779.9,19.555]
[1756076423536,0.8953,4780.3,4779.9,19.555]
[1756076423737,3.2078,4780.4,4779.9,19.555]
[1756076423738,0.8953,4780.2,4779.9,19.555]
[1756076423939,0.8953,4780.1,4779.9,19.555]
[1756076424144,0.3314,4780.0,4779.1,0.6325]
[1756076424337,0.8953,4779.6,4779.2,19.555]
[1756076424539,3.2078,4779.3,4778.6,0.3493]
[1756076424736,0.8953,4779.2,4778.7,19.555]
[1756076424932,3.2078,4779.3,4778.0,0.1057]
[1756076425140,0.8953,4778.7,4777.8,0.3493]
[1756076425336,0.8953,4778.6,4777.9,19.557]
[1756076425540,0.8953,4778.5,4777.9,19.557]
[1756076425744,3.2078,4778.8,4777.9,19.557]
[1756076425942,0.8953,4778.2,4778.0,0.3493]
[1756076426241,0.5639,4778.1,4778.0,0.3493]
[1756076426649,0.8953,4778.1,4778.0,0.3493]
[1756076426942,0.5639,4778.0,4777.9,20.1895]
[1756076427142,0.8953,4778.0,4777.9,20.1895]
[1756076427345,0.8953,4778.0,4777.9,19.557]
[1756076428139,3.2078,4778.3,4777.9,19.562]
[1756076428540,3.2078,4778.3,4778.0,0.3972]
[1756076428743,0.3042,4778.6,4778.3,0.7244]
[1756076428943,0.3042,4778.6,4778.4,19.562]
[1756076429142,0.3042,4778.6,4778.5,20.2864]
[1756076429336,0.9169,4778.6,4778.5,19.8892]
[1756076429541,3.2078,4778.9,4778.5,20.2864]
[1756076429743,3.7858,4778.9,4778.6,0.7244]
[1756076429943,3.7858,4778.9,4778.8,0.7244]
[1756076430442,3.2078,4778.9,4778.8,20.70996]
[1756076430643,4.1247,4778.9,4778.8,19.8942]
[1756076431245,3.7858,4778.9,4778.8,20.2914]
[1756076431748,0.9169,4778.8,4778.5,0.7244]
[1756076432048,0.578,4778.7,4778.6,20.29]
[1756076432546,0.9169,4778.7,4778.6,19.8942]
[1756076432845,0.9169,4778.7,4778.6,20.29]
[1756076433543,0.1943,4778.7,4778.6,19.567]
[1756076433745,0.8985,4778.7,4778.6,20.0897]
[1756076433948,0.8985,4778.7,4778.6,20.3234]
[1756076434148,1.5112,4778.7,4778.6,20.3234]
[1756076434346,1.5112,4778.7,4778.3,0.4186]
[1756076434538,0.3042,4778.1,4778.0,0.9913]
[1756076434746,0.9533,4778.8,4778.7,0.9913]
[1756076435046,3.7858,4779.5,4779.4,1.3185]
[1756076435247,3.7858,4779.5,4779.4,20.8875]
[1756076436050,0.3389,4780.0,4779.4,20.8875]
[1756076436051,1.1723,4779.9,4779.8,0.1955]
[1756076436351,3.2078,4780.0,4779.9,1.73696]
[1756076436546,3.512,4780.7,4780.6,0.1955]
[1756076436748,0.2738,4781.0,4780.9,0.41838]
[1756076437051,3.5467,4781.3,4781.1,0.41835]
[1756076437052,3.2078,4781.3,4781.1,0.41835]
[1756076437352,3.4816,4781.3,4781.2,20.293]
[1756076437752,4.1247,4781.3,4781.2,19.8972]
[1756076438448,4.1247,4781.3,4781.2,20.0011]
[1756076439147,3.2078,4781.3,4780.5,0.4311]
[1756076439347,3.2078,4781.3,4780.4,0.2919]
[1756076439348,0.2738,4781.1,4780.6,19.568]
[1756076439647,0.3042,4781.0,4780.8,0.3958]
[1756076439849,0.9169,4780.9,4780.6,19.568]
[1756076440056,0.578,4780.7,4780.6,0.4184]
[1756076440345,0.3042,4780.7,4780.6,20.7134]
[1756076440547,0.578,4780.7,4780.6,20.291]
[1756076440741,0.9169,4780.7,4780.6,19.8952]
[1756076441753,0.9169,4781.1,4780.8,0.723]
[1756076441957,0.578,4781.0,4780.9,0.4311]
[1756076442446,0.9169,4781.0,4780.9,0.4311]
[1756076442645,0.9169,4780.9,4780.4,0.1039]
[1756076442946,3.2078,4780.7,4779.8,0.1039]
[1756076443146,0.3389,4780.1,4779.8,0.1039]
[1756076443457,0.2738,4779.8,4779.1,0.3272]
[1756076443756,0.6127,4780.1,4779.4,0.2919]
[1756076443957,0.2738,4780.0,4779.5,0.3272]
[1756076444253,0.9169,4779.8,4779.6,19.582]
[1756076444454,0.9169,4779.7,4779.6,19.582]
[1756076445348,0.578,4779.7,4779.6,19.9092]
[1756076445547,0.3042,4779.7,4779.6,20.2011]
[1756076445749,3.8509,4780.2,4779.6,20.2011]
[1756076446245,3.8509,4780.2,4779.6,20.29239]
[1756076446550,3.5467,4780.2,4779.6,20.00049]
[1756076446747,0.578,4780.0,4779.9,0.3272]
[1756076447144,3.2078,4780.2,4779.6,19.582]
[1756076447344,3.7858,4781.1,4780.7,0.2919]
[1756076447544,3.7858,4781.1,4780.8,0.3272]
[1756076447751,3.7858,4781.1,4780.8,0.2919]
[1756076447952,3.7858,4781.1,4781.0,0.2919]
[1756076448155,3.7858,4781.1,4781.0,0.6191]
[1756076449255,0.9169,4781.0,4780.8,0.3272]
[1756076449444,0.9169,4780.9,4780.7,19.573]
[1756076449648,0.578,4780.7,4780.6,20.2853]
[1756076449843,0.3042,4780.7,4780.6,20.2853]
[1756076450150,0.3042,4780.9,4780.7,0.2919]
[1756076450456,0.9169,4780.9,4780.8,0.3272]
[1756076450656,3.2078,4781.1,4780.6,19.575]
[1756076450850,0.64365438,4781.0,4780.4,0.41842]
[1756076451047,0.9169,4780.9,4780.5,19.98741]
[1756076451352,3.2078,4781.1,4780.9,0.41837]
[1756076451353,0.3042,4781.0,4780.9,0.41837]
[1756076451558,0.64434433,4781.0,4780.9,1.03747]
[1756076451856,3.2078,4781.1,4781.0,0.6191]
[1756076453657,0.3389,4780.9,4779.7,0.3272]
[1756076453949,0.578,4781.4,4780.7,0.9045]
[1756076454149,0.578,4781.0,4780.3,19.613]
[1756076454354,3.7858,4781.5,4780.9,0.5773]
[1756076454552,0.6431,4781.3,4780.5,0.3272]
[1756076454857,0.64452258,4781.2,4780.5,0.3272]
[1756076455053,0.9169,4781.0,4780.5,19.9462]
[1756076455252,0.9169,4781.4,4780.5,19.9462]
[1756076455447,0.9169,4781.1,4780.1,0.3272]
[1756076455653,0.578,4780.3,4779.9,19.619]
[1756076455851,0.578,4780.8,4780.2,0.2854]
[1756076456054,3.2078,4781.1,4779.9,19.619]
[1756076456055,3.2078,4781.1,4781.0,0.5773]
[1756076456255,4.45943779,4781.1,4781.0,0.2854]
[1756076456454,0.578,4781.0,4780.9,0.2854]
[1756076456651,0.578,4781.5,4780.9,0.9045]
[1756076456855,0.6389214,4781.4,4781.0,0.9045]
[1756076457051,0.6389214,4781.3,4780.8,19.634]
[1756076457256,0.6389214,4781.2,4781.1,0.9045]
[1756076457456,0.578,4781.5,4781.2,0.9045]
[1756076457457,0.63901946,4781.4,4781.2,0.9045]
[1756076457658,0.63901946,4781.3,4781.2,0.9045]
[1756076459161,1.54731946,4781.3,4781.2,0.6126]
[1756076459461,1.19311946,4781.3,4781.2,0.6126]
[1756076459665,1.54731946,4781.3,4781.2,0.6126]
[1756076460462,0.5541,4780.9,4780.8,19.634]
[1756076460678,0.9083,4781.0,4780.4,0.2905]
[1756076460964,30.135,4783.3,4779.4,0.5596]
[1756076460965,0.5541,4780.5,4779.4,0.5596]
[1756076461261,0.2725,4780.2,4779.3,22.8328]
[1756076461467,0.2725,4779.9,4779.3,19.625]
[1756076461666,0.2725,4779.3,4778.5,0.2905]
[1756076461968,0.9083,4778.9,4778.1,20.04462]
[1756076462260,0.9083,4778.9,4778.1,19.626]
[1756076462469,0.9083,4778.7,4778.1,19.626]
[1756076462668,4.1161,4778.2,4778.1,19.626]
[1756076463363,4.1161,4778.2,4778.1,19.9598]
[1756076463561,0.3542,4778.7,4778.1,24.5194]
[1756076463763,3.2078,4778.8,4778.7,0.8934]
[1756076463968,3.84744974,4778.8,4778.7,0.8934]
[1756076464163,4.1161,4778.8,4778.2,0.8934]
[1756076464367,0.2816,4778.6,4778.2,0.3338]
[1756076464569,0.9083,4778.4,4778.1,19.626]
[1756076464868,0.3542,4778.7,4777.7,19.9285]
[1756076465161,0.9083,4778.5,4777.7,19.9285]
[1756076465368,0.9083,4778.5,4777.8,0.3338]
[1756076466362,0.9083,4778.5,4777.9,0.41863]
[1756076466868,0.9083,4778.5,4777.8,0.3338]
[1756076467065,3.2078,4778.8,4777.8,0.3338]
[1756076467260,3.2078,4778.0,4777.5,19.625]
[1756076467461,0.9083,4777.7,4777.5,19.625]
[1756076467665,0.5541,4777.9,4777.8,0.2905]
[1756076467861,3.2078,4778.0,4777.8,0.8934]
[1756076468068,3.2078,4778.0,4777.9,0.8934]
[1756076468361,3.2078,4778.6,4778.2,0.41861]
[1756076468566,3.2078,4778.6,4778.5,0.8934]
[1756076469267,4.1161,4778.6,4778.5,0.3338]
[1756076469466,0.9083,4778.3,4778.0,19.621]
[1756076469659,3.2078,4778.6,4778.0,19.621]
[1756076469660,0.9083,4778.5,4778.0,19.621]
[1756076469864,0.2816,4778.4,4778.2,0.2905]
[1756076470060,3.2078,4778.6,4778.0,20.03963]
[1756076470265,3.2078,4778.6,4778.2,0.5596]
[1756076470464,3.7619,4778.6,4778.3,0.6029]
[1756076470669,0.2816,4778.5,4778.4,0.6243]
[1756076470868,3.2078,4778.6,4778.0,19.621]
[1756076471062,0.5541,4777.9,4777.8,19.636]
[1756076471263,0.9083,4777.9,4777.8,19.636]
[1756076472672,0.9083,4777.9,4777.4,0.70918]
[1756076472863,0.3542,4777.8,4777.0,0.3338]
[1756076473062,0.9083,4777.5,4776.8,23.1169]
[1756076473573,0.9083,4777.5,4776.8,20.2429]
[1756076473767,0.9083,4777.5,4776.8,20.66163]
[1756076473967,0.9083,4777.5,4776.9,19.644]
[1756076474171,0.01283783,4777.2,4776.9,19.644]
[1756076474372,0.5541,4777.1,4777.0,0.3338]
[1756076474569,0.5541,4777.1,4777.0,0.6243]
[1756076475169,0.56693783,4777.1,4777.0,0.6243]
[1756076475673,0.57623743,4777.1,4777.0,0.6243]
[1756076475867,0.93043743,4777.1,4777.0,0.3338]
[1756076476069,0.30373743,4777.1,4777.0,20.5354]
[1756076476273,0.93043743,4777.1,4777.0,19.9688]
[1756076476681,0.93043743,4777.1,4776.6,0.2905]
[1756076476976,0.02213743,4777.1,4776.6,1.04305]
[1756076477176,0.9083,4776.7,4776.6,0.6243]
[1756076477377,0.9083,4776.7,4776.1,23.5461]
[1756076477773,0.9083,4776.7,4776.1,23.1273]
[1756076477981,0.9083,4776.8,4776.2,19.627]
[1756076478182,3.2078,4777.1,4776.2,19.627]
[1756076478183,0.02872987,4776.5,4776.2,19.627]
[1756076478577,0.02872987,4776.5,4776.4,0.8934]
[1756076480285,0.93702987,4776.5,4776.4,0.6243]
[1756076480487,0.58282987,4776.5,4776.4,19.9628]
[1756076480677,0.58282987,4776.5,4776.4,20.2533]
[1756076480874,0.93702987,4776.5,4776.4,20.2533]
[1756076481087,0.9083,4776.4,4776.2,0.3338]
[1756076481277,0.02872987,4776.3,4776.0,19.654]
[1756076481479,0.9083,4776.2,4776.1,0.3338]
[1756076481685,0.02872987,4776.3,4776.2,0.8934]
[1756076481887,0.93702987,4776.3,4775.7,0.6243]
[1756076482087,0.5541,4776.1,4775.9,0.6243]
[1756076482288,0.2725,4776.3,4776.2,0.3338]
[1756076482484,0.5541,4776.3,4776.2,0.3338]
[1756076483086,0.56654291,4776.3,4776.2,0.6243]
[1756076483281,0.36664291,4776.3,4776.0,19.64327013]
[1756076483486,0.3542,4776.2,4776.1,0.3338]
[1756076483991,0.36664291,4776.3,4776.0,19.64327013]
[1756076484191,0.01244291,4776.2,4776.0,19.97707013]
[1756076484381,0.9083,4776.1,4776.0,19.97707013]
[1756076484688,0.01244291,4776.2,4776.1,0.8934]
[1756076484983,0.02488582,4776.2,4776.1,0.41879]
[1756076485187,0.02488582,4776.2,4776.1,1.31219]
[1756076485787,0.02488582,4776.2,4776.1,20.98019]
[1756076486584,0.5541,4776.6,4776.5,0.8934]
[1756076487090,0.3542,4777.4,4777.0,0.3338]
[1756076487291,3.2078,4777.5,4777.4,1.31208]
[1756076487486,3.2078,4777.5,4777.4,20.96808]
[1756076488081,3.4833,4777.5,4777.4,20.5534]
[1756076488289,4.1194,4777.5,4777.4,19.9938]
[1756076488590,3.2078,4777.5,4777.4,20.5502]
[1756076490692,0.5686,4778.2,4777.5,0.6097]
[1756076490992,3.2078,4779.2,4778.8,0.5564]
[1756076491296,3.2078,4779.2,4779.1,0.8926]
[1756076491485,3.2078,4779.2,4779.1,20.5596]
[1756076492285,4.1194,4779.2,4779.1,20.2707]
[1756076492784,0.5686,4779.7,4779.3,0.75471]
[1756076492987,0.2931,4779.5,4779.4,0.5564]
[1756076493188,0.5686,4779.5,4779.4,0.5564]
[1756076493786,0.5686,4779.5,4779.4,0.8926]
[1756076493988,3.7764,4780.0,4779.1,19.666]
[1756076494192,0.343,4780.3,4779.9,0.8926]
[1756076494494,0.2755,4780.3,4780.2,0.58791652]
[1756076494691,3.8439,4780.7,4780.2,20.52881652]
[1756076494890,0.62849882,4780.6,4780.5,0.6191]
[1756076495091,0.2931,4781.1,4780.5,0.6191]
[1756076495092,0.2755,4781.1,4780.8,0.41838]
[1756076495290,0.5686,4781.0,4780.9,20.0012]
[1756076495493,0.9116,4781.0,4780.9,20.0012]
[1756076496589,0.5686,4781.0,4780.9,20.2672]
[1756076496894,0.5686,4781.2,4781.1,0.3362]
[1756076497095,0.9116,4781.2,4781.1,0.3362]
[1756076499091,0.6185,4781.2,4781.1,0.6022]
[1756076499290,0.9116,4781.2,4781.1,0.6022]
[1756076499489,0.9116,4781.2,4781.1,0.3362]
[1756076499685,0.5686,4781.2,4781.1,0.3362]
[1756076499891,0.5686,4781.2,4781.1,0.6022]
[1756076500196,3.2078,4781.4,4781.1,0.2829]
[1756076500391,0.2755,4781.2,4781.1,0.5489]
[1756076500696,0.5686,4782.0,4781.4,0.266]
[1756076500889,0.9116,4781.9,4781.6,0.266]
[1756076501194,3.2078,4782.1,4781.5,19.9079]
[1756076501195,3.7764,4782.1,4781.8,0.8851]
[1756076501394,3.7764,4782.1,4781.9,0.5489]
[1756076501598,3.7764,4782.1,4782.0,0.3362]
[1756076501898,3.7764,4782.1,4782.0,20.38248]
[1756076502195,3.2078,4782.1,4782.0,20.93138]
[1756076502497,4.1194,4782.1,4782.0,19.9642]
[1756076502694,4.13491498,4782.1,4782.0,19.9642]
[1756076502897,4.13491498,4782.1,4782.0,19.628]
[1756076503392,3.22331498,4782.1,4781.6,19.622]
[1756076503796,0.9116,4781.7,4781.6,19.622]
[1756076504901,0.92711498,4781.7,4781.6,19.9582]
[1756076505201,0.92711498,4781.7,4781.6,19.622]
[1756076505698,0.01551498,4781.7,4781.6,20.5071]
[1756076508097,0.92711498,4781.7,4781.6,19.8452]
[1756076508299,0.30861498,4781.7,4781.6,19.9039]
[1756076508498,0.01551498,4781.7,4781.6,19.9039]
[1756076510199,0.01551498,4781.7,4781.6,20.2482]
[1756076510396,3.7764,4782.6,4781.6,23.456]
[1756076510593,3.7764,4782.6,4782.0,0.41827]
[1756076510902,3.7764,4782.6,4782.1,19.6]
[1756076511104,0.5686,4782.5,4782.4,0.5071]
[1756076511396,0.5686,4782.5,4782.1,20.01827]
[1756076511397,3.2078,4782.6,4782.2,0.5071]
[1756076511602,3.2078,4782.6,4782.3,0.5071]
[1756076511802,3.7764,4782.6,4782.5,0.3288]
[1756076512001,0.9116,4782.5,4782.2,0.3288]
[1756076512197,0.9116,4782.2,4781.2,19.59]
[1756076512404,0.9116,4781.8,4781.2,19.59]
[1756076513305,3.2078,4781.9,4781.2,19.59]
[1756076513501,3.2078,4781.9,4781.3,0.41834]
[1756076513710,3.7764,4781.9,4781.5,0.41832]
[1756076513905,3.5009,4782.4,4781.4,0.6117]
[1756076514204,3.5009,4782.4,4781.9,0.41828]
[1756076514499,3.2078,4782.4,4782.3,0.6117]
[1756076514903,3.2078,4782.4,4781.9,19.7296]
[1756076514904,0.2931,4782.2,4781.9,19.7296]
[1756076515209,0.5686,4782.0,4781.9,19.7296]
[1756076515503,0.9116,4782.0,4781.9,19.7296]
[1756076516905,3.2078,4782.4,4781.9,19.625]
[1756076517100,0.9116,4782.2,4782.0,0.3288]
[1756076517407,0.9116,4782.0,4781.9,19.625]
[1756076517797,0.6668,4781.8,4781.3,19.62]
[1756076517998,0.3254,4781.6,4781.3,19.62]
[1756076518204,1.0129,4781.4,4781.3,19.62]
[1756076518508,1.65415183,4781.4,4780.8,0.105]
[1756076518806,1.0129,4781.0,4780.8,0.105]
[1756076519000,3.2078,4781.1,4780.5,0.3328]
[1756076519201,0.64240384,4781.0,4780.6,19.619]
[1756076519404,0.6875,4780.7,4780.6,20.3936]
[1756076519798,0.6875,4781.0,4780.6,19.619]
[1756076520001,3.2078,4781.1,4780.8,0.7746]
[1756076520197,0.64305044,4781.0,4780.9,0.7746]
[1756076520400,3.2078,4781.6,4781.1,0.41835]
[1756076520604,0.6430308,4781.5,4781.3,0.7746]
[1756076520808,0.6430308,4781.4,4781.2,23.24315]
[1756076521006,0.6430308,4781.3,4781.2,0.41835]
[1756076521209,0.6430308,4781.3,4781.2,20.03635]
[1756076521403,0.6430308,4781.3,4781.2,0.7746]
[1756076521609,0.6430308,4781.3,4780.8,19.615]
[1756076521808,2.56963319,4784.9,4780.8,19.615]
[1756076521809,3.2078,4781.1,4780.8,19.615]
[1756076522010,1.0129,4780.9,4780.5,0.7746]
[1756076522311,0.3254,4780.7,4780.6,19.625]
[1756076522608,0.6430308,4780.7,4780.5,0.7746]
[1756076522808,1.6559308,4780.6,4780.5,0.7746]
[1756076523008,1.6559308,4780.6,4780.5,20.3956]
[1756076523205,0.0143308,4780.6,4780.5,20.3956]
[1756076523406,3.5492,4782.4,4781.7,0.4183]
[1756076523605,3.5492,4782.4,4780.8,1.04597]
[1756076523606,0.3461,4782.2,4781.9,0.41829]
[1756076523809,0.3461,4782.2,4782.1,0.3328]
[1756076524007,3.2078,4782.4,4782.1,0.3328]
[1756076524212,3.5539,4782.4,4782.2,0.3328]
[1756076524408,3.5539,4782.4,4782.1,0.41827]
[1756076524607,3.5539,4782.4,4782.0,19.677]
[1756076524608,0.3461,4782.4,4782.3,0.3328]
[1756076524802,0.3461,4782.8,4782.7,0.3328]
[1756076525006,0.3461,4782.8,4782.7,20.0058]
[1756076526010,3.2078,4783.5,4783.0,0.41818]
[1756076526211,0.3461,4783.4,4782.8,0.3328]
[1756076526608,3.2078,4783.5,4782.8,0.3328]
[1756076527014,3.2078,4783.5,4783.0,0.41818]
[1756076527214,0.3461,4783.4,4782.8,0.3328]
[1756076527512,1.48192248,4784.5,4782.7,19.673]
[1756076527513,0.3461,4784.3,4783.3,3.2078]
[1756076527717,0.3461,4784.3,4783.5,0.3328]
[1756076528413,0.3461,4784.3,4783.7,0.41812]
[1756076528615,0.3461,4784.3,4783.8,0.3328]
[1756076528912,0.3461,4784.2,4783.9,0.41811]
[1756076529117,0.3461,4784.2,4784.0,19.702]
[1756076529319,0.3461,4784.2,4784.1,0.3328]
[1756076530811,3.2078,4784.5,4784.2,0.3328]
[1756076530812,0.3461,4784.4,4784.2,0.3328]
[1756076531117,0.3461,4784.9,4784.8,0.75083]
[1756076531314,0.3461,4784.9,4784.8,20.43483]
[1756076532218,0.3461,4784.9,4784.8,20.0168]
[1756076533617,0.6668,4785.5,4784.8,19.684]
[1756076533818,0.3461,4785.2,4785.1,0.3328]
[1756076534520,0.3461,4785.5,4785.1,0.3328]
[1756076534709,0.3461,4785.5,4785.4,0.41798]
[1756076534915,0.3461,4785.5,4785.4,20.41578]
[1756076535421,0.94149937,4785.5,4785.4,20.41578]
[1756076535616,0.59539937,4785.5,4785.4,20.41578]
[1756076536213,0.59539937,4785.5,4785.4,20.58026822]
[1756076536416,0.3461,4786.0,4785.7,0.41795]
[1756076536618,0.94084719,4785.9,4785.8,0.3328]
[1756076538024,1.60764719,4785.9,4785.8,0.3328]
[1756076538216,1.0129,4785.8,4785.4,19.9978]
[1756076538417,3.2078,4786.3,4785.4,19.665]
[1756076538721,0.6875,4785.6,4785.5,0.3328]
[1756076539624,0.3461,4785.6,4785.5,0.3328]
[1756076540218,1.0129,4785.6,4785.5,0.3328]
[1756076540623,3.2078,4785.7,4784.9,0.3328]
[1756076540824,1.0129,4785.1,4785.0,19.636]
[1756076541416,0.3461,4785.1,4785.0,19.9688]
[1756076542212,1.0129,4785.1,4785.0,19.9688]
[1756076543122,1.0129,4785.1,4785.0,19.636]
[1756076544322,0.6715,4785.1,4785.0,19.9688]
[1756076544517,1.0129,4785.1,4785.0,19.9688]
[1756076545220,0.3461,4785.1,4785.0,19.9688]
[1756076546322,1.0129,4785.1,4785.0,19.9688]
[1756076546524,1.0129,4785.1,4785.0,19.636]
[1756076547025,1.0129,4785.1,4785.0,19.9688]
[1756076548024,0.6875,4785.1,4785.0,19.9688]
[1756076548224,1.6813,4785.1,4785.0,20.1868]
[1756076548425,1.6813,4785.1,4785.0,20.1878]
[1756076550821,1.6813,4785.1,4785.0,19.855]
[1756076552127,0.6615,4784.9,4784.8,19.619]
[1756076552326,1.6332,4784.9,4784.8,19.619]
[1756076552522,0.2167,4784.3,4784.2,19.8494]
[1756076552729,0.5282,4784.3,4784.2,20.1769]
[1756076554231,3.2078,4784.5,4784.2,19.8474]
[1756076554433,0.7432,4784.4,4784.3,0.5599]
[1756076554624,1.3068,4784.0,4783.9,19.614]
[1756076554824,0.3115,4784.0,4783.9,20.1739]
[1756076555224,0.3115,4784.5,4784.4,0.5599]
[1756076555426,0.3115,4784.5,4784.4,20.1729]
[1756076555631,3.2078,4785.0,4784.4,19.8434]
[1756076555938,0.3115,4784.8,4784.7,0.5599]
[1756076556137,3.5193,4785.0,4784.9,0.2304]
[1756076556435,3.5193,4785.0,4784.9,0.5599]
[1756076557937,3.736,4785.0,4784.9,0.5599]
[1756076558237,4.2848,4785.0,4784.9,20.1839]
[1756076558436,4.6112,4785.0,4784.9,20.1839]
[1756076558737,4.841,4785.0,4784.9,20.1739]
[1756076559435,4.841,4785.0,4784.9,20.1699]
[1756076559637,3.5193,4785.0,4784.9,20.1699]
[1756076560834,3.5193,4785.0,4784.9,20.1639]
[1756076561333,0.7432,4785.0,4784.9,20.1639]
[1756076561532,0.3115,4785.0,4784.9,20.1639]
[1756076562440,0.3115,4785.5,4785.0,0.3295]
[1756076562743,3.6395,4785.6,4785.5,0.2304]
[1756076563037,5.12870814,4785.6,4785.5,20.1429]
[1756076563336,5.44020814,4785.6,4785.5,20.1429]
[1756076563735,5.44020814,4785.6,4785.5,0.2304]
[1756076563935,5.44020814,4785.6,4785.5,20.1489]
[1756076564537,5.44020814,4785.6,4785.5,19.8194]
[1756076564946,5.11380814,4785.6,4785.5,20.1489]
[1756076565137,5.11380814,4785.6,4785.5,20.1379]
[1756076565337,5.44020814,4785.6,4785.5,20.1379]
[1756076566939,0.6615,4785.0,4784.5,0.3295]
[1756076567140,0.4317,4783.9,4783.8,0.41812]
[1756076567340,0.7432,4783.9,4783.8,20.56502]
[1756076567751,0.7432,4783.9,4783.8,20.1469]
[1756076568042,1.6332,4783.9,4783.8,0.5599]
[1756076568242,1.6332,4783.9,4783.8,20.1469]
[1756076568546,0.6615,4783.5,4783.4,0.3295]
[1756076568748,1.6332,4783.5,4783.4,19.9165]
[1756076568950,1.6332,4783.5,4783.4,19.587]
[1756076569246,1.6332,4783.5,4783.4,19.8174]
[1756076569451,1.6332,4783.5,4783.4,20.1429]
[1756076570435,1.6332,4783.5,4783.4,0.2304]
[1756076570638,0.6615,4783.5,4783.4,19.582]
[1756076571238,1.6332,4783.5,4783.4,19.582]
[1756076572539,0.9879,4783.1,4782.4,3.2078]
[1756076572738,1.6332,4782.5,4782.4,0.2304]
[1756076572936,1.6332,4782.5,4782.4,19.8074]
[1756076573134,1.6332,4782.5,4782.4,20.1369]
[1756076573535,1.3068,4782.5,4782.4,20.1369]
[1756076574746,1.6332,4782.5,4782.4,20.1369]
[1756076575144,1.3068,4782.5,4782.4,20.1369]
[1756076576246,0.5282,4782.5,4782.4,20.1369]
[1756076576446,3.2078,4783.1,4782.4,20.1369]
[1756076576654,3.2078,4783.1,4783.0,0.5599]
[1756076576958,3.2078,4783.1,4783.0,20.1339]
[1756076577641,3.5193,4783.1,4783.0,20.1339]
[1756076578045,4.8462,4783.1,4783.0,0.2304]
[1756076578245,4.8462,4783.1,4783.0,20.1313]
[1756076578444,4.5096,4783.1,4783.0,20.1313]
[1756076578645,3.736,4783.1,4783.0,20.1313]
[1756076578941,0.3305,4783.0,4782.4,19.582]
[1756076579242,0.3305,4783.0,4782.9,0.2115]
[1756076579439,3.2078,4783.1,4783.0,0.73709]
[1756076579644,3.5383,4783.1,4783.0,0.94859]
[1756076579845,3.5383,4783.1,4783.0,0.5304]
[1756076582144,0.6617,4782.8,4782.7,19.8625]
[1756076582348,1.6714,4782.8,4782.7,19.8625]
[1756076582548,1.6714,4782.8,4782.7,0.2115]
[1756076582850,0.3305,4782.8,4782.7,20.1794]
[1756076585352,3.5383,4783.1,4783.0,0.94859]
[1756076585550,3.2078,4783.1,4783.0,0.94859]
[1756076586257,0.3305,4783.6,4783.5,0.5304]
[1756076586456,0.3305,4783.6,4783.5,20.1714]
[1756076587559,1.6714,4783.6,4783.5,20.1714]
[1756076587754,1.6714,4783.6,4782.6,0.2115]
[1756076587755,0.9983,4782.7,4782.6,0.2115]
[1756076588056,1.0097,4782.0,4781.9,19.632]
[1756076588458,1.0097,4782.0,4781.9,19.9509]
[1756076589457,1.0097,4782.0,4781.9,19.632]
[1756076590257,4.0,4782.0,4781.1,0.3189]
[1756076590463,3.2078,4781.2,4780.4,3.2078]
[1756076590652,1.0097,4781.1,4780.2,19.635]
[1756076590858,0.3426,4780.6,4780.2,19.635]